bitfinex/quotes_BTCUSD_20240817
["timestamp","ask_amount","ask_price","bid_price","bid_amount"]
[1723899258547,0.86474342,59326.0,59325.0,0.0289064]
[1723899259705,0.58657985,59326.0,59325.0,0.0289064]
[1723899259916,0.83941985,59326.0,59325.0,0.0289064]
[1723899260119,0.78879961,59326.0,59325.0,0.0289064]
[1723899260466,0.83941936,59326.0,59325.0,0.0289064]
[1723899263308,1.12345145,59326.0,59325.0,0.0289064]
[1723899263511,1.40259602,59326.0,59325.0,0.0289064]
[1723899264125,1.28827386,59326.0,59325.0,0.0289064]
[1723899264420,1.28827386,59326.0,59325.0,0.0149064]
[1723899264620,1.28627386,59326.0,59325.0,0.0219064]
[1723899264810,1.28627386,59326.0,59325.0,0.0009064]
[1723899265131,1.28827386,59326.0,59325.0,0.0069064]
[1723899265450,1.28827386,59326.0,59325.0,0.0009064]
[1723899265651,1.28827386,59326.0,59325.0,0.0079064]
[1723899265851,1.28827386,59326.0,59325.0,0.0139064]
[1723899266307,1.28527386,59326.0,59325.0,0.0139064]
[1723899267500,1.18403961,59326.0,59325.0,0.0139064]
[1723899267707,1.28627386,59326.0,59325.0,0.0139064]
[1723899268266,1.60131007,59326.0,59325.0,0.0139064]
[1723899268874,1.49807582,59326.0,59325.0,0.0139064]
[1723899269291,1.35659415,59326.0,59325.0,0.0139064]
[1723899269480,1.45777984,59326.0,59325.0,0.0139064]
[1723899270563,1.36337984,59326.0,59325.0,0.0139064]
[1723899271115,1.36237984,59326.0,59325.0,0.0139064]
[1723899271535,1.2852253,59326.0,59325.0,0.0139064]
[1723899271759,1.04163961,59326.0,59325.0,0.0139064]
[1723899272115,0.94723961,59326.0,59325.0,0.0139064]
[1723899273021,1.04163961,59326.0,59325.0,0.0139064]
[1723899275357,1.11750401,59326.0,59325.0,0.0139064]
[1723899277306,1.11750183,59326.0,59325.0,0.0139064]
[1723899284726,0.86466183,59326.0,59325.0,0.0139064]
[1723899284920,0.83937495,59326.0,59325.0,0.0139064]
[1723899285134,1.04163961,59326.0,59325.0,0.0139064]
[1723899285445,0.78879961,59326.0,59325.0,0.0139064]
[1723899286050,1.04163961,59326.0,59325.0,0.0139064]
[1723899288286,0.78879961,59326.0,59325.0,0.0139064]
[1723899289083,1.04163961,59326.0,59325.0,0.0139064]
[1723899289523,1.09221598,59326.0,59325.0,0.0139064]
[1723899289927,0.83937598,59326.0,59325.0,0.0139064]
[1723899290081,0.11287598,59326.0,59325.0,0.2765284]
[1723899290337,0.11287598,59326.0,59325.0,0.2995284]
[1723899290338,0.00169856,59326.0,59325.0,0.2995284]
[1723899290505,0.00169856,59326.0,59325.0,0.57371389]
[1723899290714,0.00169856,59326.0,59325.0,0.82655789]
[1723899291424,0.00169856,59326.0,59325.0,0.83092046]
[1723899291799,0.00169856,59326.0,59325.0,0.82992046]
[1723899292266,0.00169856,59326.0,59325.0,0.81557897]
[1723899292412,0.00169856,59326.0,59325.0,0.82991557]
[1723899292790,0.00169856,59326.0,59325.0,0.84391557]
[1723899293046,0.00169856,59326.0,59325.0,0.82991557]
[1723899293339,0.00169856,59326.0,59325.0,0.82391557]
[1723899293482,0.00169856,59326.0,59325.0,0.83691557]
[1723899294080,0.00169856,59326.0,59325.0,0.82391557]
[1723899294332,0.00169856,59326.0,59325.0,0.83791557]
[1723899294508,0.00169856,59326.0,59325.0,0.85191557]
[1723899294910,0.00169856,59326.0,59325.0,0.82391557]
[1723899295278,0.00169856,59326.0,59325.0,0.85091557]
[1723899295455,0.00169856,59326.0,59325.0,0.83691557]
[1723899295654,0.00169856,59326.0,59325.0,1.26131411]
[1723899296061,0.00169856,59326.0,59325.0,1.27531411]
[1723899296273,0.00169856,59326.0,59325.0,1.26131299]
[1723899296488,0.00169856,59326.0,59325.0,1.26231299]
[1723899296690,0.00169856,59326.0,59325.0,1.27631299]
[1723899297279,0.00169856,59326.0,59325.0,1.26231299]
[1723899297619,0.00169856,59326.0,59325.0,1.27631299]
[1723899297937,0.00169856,59326.0,59325.0,1.26231299]
[1723899298182,0.00169856,59326.0,59325.0,1.24831299]
[1723899298384,0.00169856,59326.0,59325.0,1.27631299]
[1723899299598,0.00169856,59326.0,59325.0,1.26231299]
[1723899300059,0.00169856,59326.0,59325.0,1.27631299]
[1723899300668,0.00169856,59326.0,59325.0,1.27631559]
[1723899300879,0.00078286,59326.0,59325.0,1.27631559]
[1723899302049,0.00169856,59326.0,59325.0,1.27631559]
[1723899308120,0.00169856,59326.0,59325.0,1.27631496]
[1723899309013,0.00078286,59326.0,59325.0,1.27631496]
[1723899309219,0.00078286,59326.0,59325.0,1.41194888]
[1723899310198,0.00078286,59326.0,59325.0,1.65079288]
[1723899310594,0.00078286,59326.0,59325.0,1.71505379]
[1723899310775,0.00078286,59326.0,59325.0,1.74406631]
[1723899311186,0.00078286,59326.0,59325.0,1.71505379]
[1723899311392,0.00078286,59326.0,59325.0,1.73006646]
[1723899311591,0.00078286,59326.0,59325.0,1.74406646]
[1723899311789,0.00078286,59326.0,59325.0,1.73006646]
[1723899312230,0.00078286,59326.0,59325.0,1.74406646]
[1723899312429,0.00078286,59326.0,59325.0,1.67980555]
[1723899312835,0.00078286,59326.0,59325.0,1.69380555]
[1723899313266,0.00078286,59326.0,59325.0,1.66479288]
[1723899313419,0.00078286,59326.0,59325.0,1.69380555]
[1723899313810,0.00078286,59326.0,59325.0,1.69480555]
[1723899314032,0.00078286,59326.0,59325.0,1.69380555]
[1723899316112,0.00078286,59326.0,59325.0,1.69480555]
[1723899316308,0.00078286,59326.0,59325.0,1.76189609]
[1723899317137,0.00078286,59326.0,59325.0,1.70303189]
[1723899317364,0.00078286,59326.0,59325.0,1.76189609]
[1723899317566,0.00078286,59326.0,59325.0,1.76289609]
[1723899318993,0.00078286,59326.0,59325.0,1.76489609]
[1723899319213,0.00078286,59326.0,59325.0,1.70603189]
[1723899319566,0.00078286,59326.0,59325.0,1.70303189]
[1723899320552,0.00078286,59326.0,59325.0,1.68170511]
[1723899320754,0.00078286,59326.0,59325.0,1.70303369]
[1723899324551,0.00078286,59326.0,59325.0,1.66741658]
[1723899324773,0.00078286,59326.0,59325.0,1.70303641]
[1723899324962,0.00078286,59326.0,59325.0,1.70303659]
[1723899327621,0.0009157,59335.0,59334.0,0.632015]
[1723899327825,0.0009157,59335.0,59334.0,1.2363245]
[1723899328940,0.0009157,59337.0,59336.0,0.126398]
[1723899329255,0.0009157,59337.0,59336.0,0.9834955]
[1723899329629,0.0009157,59337.0,59336.0,0.8570975]
[1723899329838,0.0009157,59337.0,59336.0,0.9834955]
[1723899330013,0.0009157,59337.0,59336.0,0.9964955]
[1723899330774,0.0009157,59337.0,59336.0,0.8700975]
[1723899330914,0.1396,59341.0,59337.0,0.631982]
[1723899330915,0.0009157,59338.0,59337.0,0.631982]
[1723899331115,0.0009157,59338.0,59337.0,0.71193096]
[1723899332413,0.0009157,59338.0,59337.0,0.72393096]
[1723899332808,0.0009157,59338.0,59337.0,0.72395423]
[1723899333581,0.0009157,59338.0,59337.0,0.73495423]
[1723899336605,0.00087356,59338.0,59337.0,0.72295423]
[1723899336813,0.00087356,59338.0,59337.0,0.73495435]
[1723899337627,0.00087356,59338.0,59337.0,0.72395435]
[1723899338027,0.00087356,59338.0,59337.0,0.73495435]
[1723899338231,0.00087356,59338.0,59337.0,0.72295435]
[1723899338530,0.00087356,59338.0,59337.0,0.72395435]
[1723899338858,0.00087356,59338.0,59337.0,0.73495435]
[1723899341784,0.00087356,59340.0,59337.0,0.33552689]
[1723899341988,0.00087356,59340.0,59339.0,0.63196]
[1723899342190,0.00087356,59341.0,59340.0,0.12639]
[1723899342444,0.00087356,59341.0,59340.0,0.20973239]
[1723899342793,0.00087356,59341.0,59340.0,0.96807239]
[1723899343997,0.00087356,59342.0,59341.0,0.63194]
[1723899344203,0.00087356,59342.0,59341.0,0.8834729]
[1723899344405,0.00087356,59342.0,59341.0,0.9650729]
[1723899344786,0.00087356,59342.0,59341.0,1.2178489]
[1723899345187,0.00087356,59342.0,59341.0,1.16087054]
[1723899345394,0.00087356,59342.0,59341.0,0.96506904]
[1723899345630,0.00087356,59342.0,59341.0,0.97706904]
[1723899345827,0.00087356,59342.0,59341.0,0.90646904]
[1723899348803,0.09587356,59343.0,59342.0,0.63193]
[1723899349034,0.09587356,59343.0,59342.0,2.01467224]
[1723899349236,0.09587356,59343.0,59342.0,2.20324909]
[1723899349426,0.09587356,59343.0,59342.0,1.97745951]
[1723899349711,0.09587356,59343.0,59342.0,2.04365585]
[1723899350102,1e-08,59343.0,59342.0,2.04365585]
[1723899350306,1e-08,59343.0,59342.0,2.11646831]
[1723899350536,1e-08,59343.0,59342.0,2.12646831]
[1723899351112,1e-08,59343.0,59342.0,2.11646831]
[1723899351344,1e-08,59343.0,59342.0,2.14063027]
[1723899351545,1e-08,59343.0,59342.0,2.08177797]
[1723899352152,1e-08,59343.0,59342.0,2.06777797]
[1723899352777,1e-08,59343.0,59342.0,2.11553797]
[1723899353700,1e-08,59343.0,59342.0,2.10153797]
[1723899354280,1e-08,59343.0,59342.0,2.11553797]
[1723899354482,1e-08,59343.0,59342.0,2.10153797]
[1723899354845,1e-08,59343.0,59342.0,2.11553667]
[1723899355357,1e-08,59343.0,59342.0,2.22727175]
[1723899355627,1e-08,59343.0,59342.0,2.24127175]
[1723899355817,1e-08,59343.0,59342.0,2.21327175]
[1723899356335,1e-08,59343.0,59342.0,2.22727175]
[1723899357214,1e-08,59343.0,59342.0,2.24127175]
[1723899357461,0.00082401,59343.0,59342.0,2.11553667]
[1723899358383,0.00082401,59343.0,59342.0,2.09227037]
[1723899358618,0.00082401,59343.0,59342.0,2.10151819]
[1723899359116,0.00082401,59343.0,59342.0,2.11551819]
[1723899359320,0.00082401,59343.0,59342.0,2.21604965]
[1723899359600,0.00082401,59343.0,59342.0,2.21604872]
[1723899360003,0.00082401,59343.0,59342.0,2.30003088]
[1723899361197,0.00082401,59343.0,59342.0,2.1459867]
[1723899361414,0.00082401,59343.0,59342.0,2.2411809]
[1723899362571,0.00082401,59343.0,59342.0,2.11551894]
[1723899364540,0.00082401,59343.0,59342.0,2.21602002]
[1723899364976,0.000824,59345.0,59344.0,0.88467]
[1723899365205,0.000824,59345.0,59344.0,2.0324729]
[1723899365382,0.000824,59345.0,59344.0,2.1116729]
[1723899365589,0.000824,59345.0,59344.0,1.73789866]
[1723899366414,0.000824,59345.0,59344.0,1.75188372]
[1723899366616,0.000824,59345.0,59344.0,1.76588372]
[1723899368195,0.000824,59345.0,59344.0,1.83048372]
[1723899368409,0.000824,59345.0,59344.0,2.23526585]
[1723899369849,0.000824,59345.0,59344.0,2.20325396]
[1723899370296,0.000824,59345.0,59344.0,2.32547008]
[1723899370995,0.000824,59345.0,59344.0,2.31147008]
[1723899371430,0.000824,59345.0,59344.0,2.32547008]
[1723899371877,0.000824,59345.0,59344.0,2.31147008]
[1723899372126,0.000824,59345.0,59344.0,2.25262656]
[1723899372307,0.000824,59345.0,59344.0,2.26662656]
[1723899373421,0.000824,59345.0,59344.0,2.30038656]
[1723899374078,0.000824,59345.0,59344.0,2.28638656]
[1723899374303,0.000824,59345.0,59344.0,2.28638361]
[1723899374559,0.000824,59345.0,59344.0,2.30038361]
[1723899375791,0.000824,59345.0,59344.0,2.17290261]
[1723899376078,0.000824,59355.0,59354.0,1.21644]
[1723899376277,0.000824,59355.0,59354.0,2.26616734]
[1723899376447,0.000824,59355.0,59354.0,2.26612618]
[1723899376852,0.000824,59355.0,59354.0,2.26603398]
[1723899377124,0.000824,59355.0,59354.0,2.26703398]
[1723899377350,0.000824,59355.0,59354.0,2.26903398]
[1723899377558,0.000824,59355.0,59354.0,2.30279398]
[1723899377963,0.000824,59355.0,59354.0,2.30079398]
[1723899378514,0.000824,59355.0,59354.0,2.08938015]
[1723899378717,0.000824,59355.0,59354.0,2.17526302]
[1723899378921,0.000824,59355.0,59354.0,2.18926302]
[1723899379142,0.000824,59355.0,59354.0,2.20326302]
[1723899379348,0.000824,59355.0,59354.0,2.18926302]
[1723899379518,0.000824,59355.0,59354.0,2.289592]
[1723899379725,0.000824,59355.0,59354.0,2.29970841]
[1723899379925,1e-08,59356.0,59355.0,1.138222]
[1723899380271,1e-08,59356.0,59355.0,2.001914]
[1723899380473,1e-08,59356.0,59355.0,1.90158502]
[1723899381511,1e-08,59356.0,59355.0,1.97681669]
[1723899382371,1e-08,59356.0,59355.0,1.99081414]
[1723899382597,1e-08,59356.0,59355.0,1.99081305]
[1723899383248,1e-08,59356.0,59355.0,2.00481305]
[1723899386382,1e-08,59356.0,59355.0,2.00481028]
[1723899386845,1e-08,59356.0,59355.0,1.99557035]
[1723899387077,1e-08,59356.0,59355.0,2.00481081]
[1723899387568,1e-08,59356.0,59355.0,1.92958353]
[1723899388382,1e-08,59356.0,59355.0,2.00878353]
[1723899389380,1e-08,59356.0,59355.0,2.11108657]
[1723899389541,1e-08,59356.0,59355.0,2.11308657]
[1723899389994,1e-08,59356.0,59355.0,2.10908657]
[1723899390848,1e-08,59356.0,59355.0,2.10915013]
[1723899391062,1e-08,59356.0,59355.0,1.92858447]
[1723899391293,1e-08,59356.0,59355.0,2.0626802]
[1723899391500,1e-08,59356.0,59355.0,1.68899509]
[1723899391704,1e-08,59356.0,59355.0,1.62093859]
[1723899392073,1e-08,59356.0,59355.0,1.99463981]
[1723899392274,1e-08,59356.0,59355.0,1.99463934]
[1723899393206,1e-08,59356.0,59355.0,2.00388161]
[1723899393406,1e-08,59356.0,59355.0,2.02896758]
[1723899394194,1e-08,59356.0,59355.0,2.08778169]
[1723899394422,1e-08,59356.0,59355.0,1.98741603]
[1723899396099,1e-08,59356.0,59355.0,1.97817376]
[1723899396304,1e-08,59356.0,59355.0,1.98741595]
[1723899398409,1e-08,59356.0,59355.0,1.92860184]
[1723899398649,1e-08,59356.0,59355.0,2.05419756]
[1723899399123,1e-08,59356.0,59355.0,1.92860184]
[1723899399600,1e-08,59356.0,59355.0,2.05419756]
[1723899404256,1e-08,59356.0,59355.0,1.95907301]
[1723899404467,1e-08,59356.0,59355.0,2.05422002]
[1723899405006,1e-08,59356.0,59355.0,1.55492355]
[1723899407124,1e-08,59356.0,59355.0,1.49801706]
[1723899407321,1e-08,59356.0,59355.0,1.55492515]
[1723899407813,1e-08,59356.0,59355.0,1.55583155]
[1723899409351,1e-08,59356.0,59355.0,1.92953482]
[1723899410179,1e-08,59356.0,59355.0,1.92953425]
[1723899410833,1e-08,59356.0,59355.0,2.02393425]
[1723899414884,1e-08,59356.0,59355.0,2.02393424]
[1723899415362,1e-08,59356.0,59355.0,2.02393673]
[1723899417764,1e-08,59356.0,59355.0,2.17492283]
[1723899417991,1e-08,59356.0,59355.0,2.02393673]
[1723899419343,1e-08,59356.0,59355.0,2.07977173]
[1723899419606,1e-08,59356.0,59355.0,2.17494941]
[1723899419815,1e-08,59356.0,59355.0,2.17506646]
[1723899420124,1e-08,59356.0,59355.0,2.02396284]
[1723899420531,1e-08,59356.0,59355.0,2.17506311]
[1723899420778,1e-08,59356.0,59355.0,2.02396217]
[1723899421454,1e-08,59356.0,59355.0,2.54714528]
[1723899421676,1e-08,59356.0,59355.0,2.02396217]
[1723899421882,1e-08,59356.0,59355.0,2.17517395]
[1723899422094,0.14030001,59356.0,59355.0,1.55384756]
[1723899422292,0.14030001,59356.0,59355.0,1.35998377]
[1723899422504,0.14030001,59356.0,59355.0,1.41790381]
[1723899422711,0.14030001,59356.0,59355.0,1.16518781]
[1723899422959,0.14030001,59356.0,59355.0,1.11102927]
[1723899423161,0.14030001,59356.0,59355.0,1.09702927]
[1723899423675,0.14030001,59356.0,59355.0,1.34974527]
[1723899423858,0.14030001,59356.0,59355.0,1.33574527]
[1723899424076,0.14030001,59356.0,59355.0,1.38674527]
[1723899424497,0.14030001,59356.0,59355.0,1.47274527]
[1723899424709,0.14030001,59356.0,59355.0,1.38592239]
[1723899425581,0.14030001,59356.0,59355.0,1.46150983]
[1723899426022,0.14030001,59356.0,59355.0,1.46153286]
[1723899426603,0.14030001,59356.0,59355.0,1.08778626]
[1723899426730,0.14030001,59356.0,59355.0,1.08777473]
[1723899427339,0.14030001,59356.0,59355.0,1.06258516]
[1723899427642,0.14030001,59356.0,59355.0,0.97657981]
[1723899429707,0.14030001,59356.0,59355.0,0.9765825]
[1723899430571,0.14030001,59356.0,59355.0,0.95525094]
[1723899430772,0.14030001,59356.0,59355.0,0.97658644]
[1723899433204,0.14030001,59356.0,59355.0,0.2995999]
[1723899433409,0.14030001,59356.0,59355.0,0.2782644]
[1723899433635,0.14030001,59356.0,59355.0,0.1782644]
[1723899434046,0.14030001,59356.0,59355.0,0.0519064]
[1723899434246,0.14030001,59356.0,59355.0,0.1782644]
[1723899434448,0.14030001,59356.0,59355.0,0.0519064]
[1723899434913,0.14030001,59356.0,59355.0,0.1782644]
[1723899435301,0.14030001,59356.0,59355.0,0.0519064]
[1723899436082,0.14030001,59356.0,59355.0,0.1782644]
[1723899437685,0.14030001,59356.0,59355.0,0.0519064]
[1723899438691,0.26665601,59356.0,59355.0,0.0519064]
[1723899438894,0.51936801,59356.0,59355.0,0.0519064]
[1723899439095,0.26665601,59356.0,59355.0,0.0519064]
[1723899439821,0.51936801,59356.0,59355.0,0.0519064]
[1723899440049,0.77208001,59356.0,59355.0,0.0289064]
[1723899440693,1.05579201,59356.0,59355.0,0.0289064]
[1723899440895,1.11629855,59356.0,59355.0,0.0289064]
[1723899441347,1.23876544,59356.0,59355.0,0.0289064]
[1723899441625,1.1782589,59356.0,59355.0,0.0289064]
[1723899441882,1.1772589,59356.0,59355.0,0.0289064]
[1723899442053,1.05479201,59356.0,59355.0,0.0289064]
[1723899442646,1.05479201,59356.0,59355.0,0.0149064]
[1723899442848,1.05479201,59356.0,59355.0,0.0009064]
[1723899443055,1.05679201,59356.0,59355.0,0.0009064]
[1723899443649,1.05479201,59356.0,59355.0,0.0009064]
[1723899443820,1.05879201,59356.0,59355.0,0.0009064]
[1723899444834,1.06179201,59356.0,59355.0,0.0009064]
[1723899447298,1.05879201,59356.0,59355.0,0.0009064]
[1723899448463,1.06179201,59356.0,59355.0,0.0009064]
[1723899449670,1.05879201,59356.0,59355.0,0.0009064]
[1723899450050,1.05979201,59356.0,59355.0,0.0009064]
[1723899450452,1.05879201,59356.0,59355.0,0.0009064]
[1723899450860,1.05979201,59356.0,59355.0,0.0009064]
[1723899451206,1.05879201,59356.0,59355.0,0.0009064]
[1723899454522,1.11930277,59356.0,59355.0,0.0009064]
[1723899455473,1.12230277,59356.0,59355.0,0.0009064]
[1723899455907,1.12030277,59356.0,59355.0,0.0009064]
[1723899456683,1.12230277,59356.0,59355.0,0.0009064]
[1723899464248,1.67163662,59356.0,59355.0,0.0009064]
[1723899465950,1.72203609,59356.0,59355.0,0.0009064]
[1723899466419,1.54856931,59356.0,59355.0,0.0009064]
[1723899467578,1.59896878,59356.0,59355.0,0.0009064]
[1723899468493,1.54856931,59356.0,59355.0,0.0009064]
[1723899468719,1.62416852,59356.0,59355.0,0.0009064]
[1723899469610,1.54856931,59356.0,59355.0,0.0009064]
[1723899470347,1.69509929,59356.0,59355.0,0.0009064]
[1723899470564,1.770738,59356.0,59355.0,0.0009064]
[1723899472125,1.62420802,59356.0,59355.0,0.0009064]
[1723899473526,1.54856931,59356.0,59355.0,0.0009064]
[1723899474684,1.64946667,59356.0,59355.0,0.0009064]
[1723899476594,1.54856931,59356.0,59355.0,0.0009064]
[1723899477615,1.67469101,59356.0,59355.0,0.0009064]
[1723899478235,1.84624555,59356.0,59355.0,0.0009064]
[1723899479057,1.8463626,59356.0,59355.0,0.0009064]
[1723899480695,1.72012385,59356.0,59355.0,0.0009064]
[1723899488322,1.54456931,59356.0,59355.0,0.0009064]
[1723899488641,1.54856931,59356.0,59355.0,0.0009064]
[1723899489605,1.47306931,59356.0,59355.0,0.0009064]
[1723899493046,1.54856931,59356.0,59355.0,0.0009064]
[1723899495613,1.70024473,59356.0,59355.0,0.0009064]
[1723899495820,1.87179927,59356.0,59355.0,0.0009064]
[1723899496300,1.72012385,59356.0,59355.0,0.0009064]
[1723899496521,1.87186219,59356.0,59355.0,0.0009064]
[1723899499585,1.72012385,59356.0,59355.0,0.0009064]
[1723899501371,1.8719186,59356.0,59355.0,0.0009064]
[1723899501599,1.72012385,59356.0,59355.0,0.0009064]
[1723899502068,1.87193356,59356.0,59355.0,0.0009064]
[1723899503719,1.72012385,59356.0,59355.0,0.0009064]
[1723899503842,1.70039106,59356.0,59355.0,0.0009064]
[1723899504462,1.54856931,59356.0,59355.0,0.0009064]
[1723899504575,1.70040007,59356.0,59355.0,0.0009064]
[1723899505024,1.54856931,59356.0,59355.0,0.0009064]
[1723899505456,1.5737701,59356.0,59355.0,0.0009064]
[1723899508224,1.54856931,59356.0,59355.0,0.0009064]
[1723899514187,1.40826931,59356.0,59355.0,0.0799064]
[1723899514594,1.40626931,59356.0,59355.0,0.0799064]
[1723899514962,1.40826931,59356.0,59355.0,0.0799064]
[1723899515161,1.40826931,59356.0,59355.0,0.0009064]
[1723899521656,1.40426931,59356.0,59355.0,0.0009064]
[1723899521813,1.40826931,59356.0,59355.0,0.0009064]
[1723899523372,1.50266931,59356.0,59355.0,0.0009064]
[1723899524125,1.60875095,59356.0,59355.0,0.0009064]
[1723899524326,1.50266931,59356.0,59355.0,0.0009064]
[1723899533139,1.15055731,59356.0,59355.0,0.0009064]
[1723899533373,1.07340277,59356.0,59355.0,0.1422064]
[1723899533589,1.19993932,59356.0,59355.0,0.1422064]
[1723899534198,1.20293994,59356.0,59355.0,0.1422064]
[1723899536489,1.19993994,59356.0,59355.0,0.1422064]
[1723899536692,1.20093994,59356.0,59355.0,0.1422064]
[1723899537507,1.20293994,59356.0,59355.0,0.1422064]
[1723899537709,1.07640277,59356.0,59355.0,0.1422064]
[1723899540212,1.07340277,59356.0,59355.0,0.1422064]
[1723899541214,1.17457047,59356.0,59355.0,0.1422064]
[1723899542238,1.1745697,59356.0,59355.0,0.1422064]
[1723899543840,1.1775697,59356.0,59355.0,0.1422064]
[1723899544448,1.1755697,59356.0,59355.0,0.1422064]
[1723899544670,1.1775697,59356.0,59355.0,0.1422064]
[1723899544866,1.1745697,59356.0,59355.0,0.1422064]
[1723899545980,1.1775697,59356.0,59355.0,0.1422064]
[1723899546563,1.1745697,59356.0,59355.0,0.1422064]
[1723899546762,1.17455166,59356.0,59355.0,0.1422064]
[1723899547510,1.17555166,59356.0,59355.0,0.1422064]
[1723899547629,1.17455166,59356.0,59355.0,0.1422064]
[1723899549484,1.17555166,59356.0,59355.0,0.1422064]
[1723899549608,1.17755166,59356.0,59355.0,0.0804064]
[1723899551531,1.17754329,59356.0,59355.0,0.0804064]
[1723899556528,1.17454329,59356.0,59355.0,0.0804064]
[1723899557393,1.17454329,59356.0,59355.0,0.0009064]
[1723899558715,1.34609783,59356.0,59355.0,0.0009064]
[1723899558921,1.50329721,59356.0,59355.0,0.0009064]
[1723899560855,1.50330734,59356.0,59355.0,0.0009064]
[1723899561256,1.40215669,59356.0,59355.0,0.0009064]
[1723899561921,1.32545731,59356.0,59355.0,0.0009064]
[1723899562299,1.57816931,59356.0,59355.0,0.0009064]
[1723899565377,1.57416931,59356.0,59355.0,0.0009064]
[1723899565783,1.32145731,59356.0,59355.0,0.0009064]
[1723899565955,1.3214152,59356.0,59355.0,0.0009064]
[1723899567356,1.3234152,59356.0,59355.0,0.0009064]
[1723899568707,1.3214152,59356.0,59355.0,0.0009064]
[1723899569971,1.3234152,59356.0,59355.0,0.0009064]
[1723899570586,1.2499152,59356.0,59355.0,0.0009064]
[1723899572120,1.2479152,59356.0,59355.0,0.0009064]
[1723899572286,1.2459152,59356.0,59355.0,0.0009064]
[1723899573188,1.4986272,59356.0,59355.0,0.0009064]
[1723899573366,1.2467392,59356.0,59355.0,0.0009064]
[1723899574178,1.2487392,59356.0,59355.0,0.0009064]
[1723899574379,1.5014512,59356.0,59355.0,0.0009064]
[1723899574574,1.2487392,59356.0,59355.0,0.0009064]
[1723899574923,1.2467392,59356.0,59355.0,0.0009064]
[1723899578404,1.2487392,59356.0,59355.0,0.0009064]
[1723899580303,1.2467392,59356.0,59355.0,0.0009064]
[1723899581064,1.2487392,59356.0,59355.0,0.0009064]
[1723899582655,1.2507392,59356.0,59355.0,0.0009064]
[1723899583120,1.2467392,59356.0,59355.0,0.0009064]
[1723899584429,1.2487392,59356.0,59355.0,0.0009064]
[1723899584558,1.2507392,59356.0,59355.0,0.0009064]
[1723899585168,1.2467392,59356.0,59355.0,0.0009064]
[1723899587983,1.2487392,59356.0,59355.0,0.0009064]
[1723899588188,1.2507392,59356.0,59355.0,0.0009064]
[1723899589504,1.2487392,59356.0,59355.0,0.0009064]
[1723899591699,1.2467392,59356.0,59355.0,0.0009064]
[1723899592585,1.2487392,59356.0,59355.0,0.0009064]
[1723899593379,1.2467392,59356.0,59355.0,0.0009064]
[1723899596588,1.2487392,59356.0,59355.0,0.0009064]
[1723899596979,1.2467392,59356.0,59355.0,0.0009064]
[1723899597634,1.2487392,59356.0,59355.0,0.0009064]
[1723899598907,1.2467392,59356.0,59355.0,0.0009064]
[1723899600312,1.2487392,59356.0,59355.0,0.0009064]
[1723899600514,1.2467392,59356.0,59355.0,0.0009064]
[1723899600937,1.2487392,59356.0,59355.0,0.0009064]
[1723899601122,1.2467392,59356.0,59355.0,0.0009064]
[1723899602873,1.1523392,59356.0,59355.0,0.0009064]
[1723899603306,1.2467392,59356.0,59355.0,0.0009064]
[1723899606189,0.97978466,59356.0,59355.0,0.1397064]
[1723899606403,1.10634996,59356.0,59355.0,0.1397064]
[1723899606811,0.97978466,59356.0,59355.0,0.1397064]
[1723899607022,1.10634875,59356.0,59355.0,0.1397064]
[1723899607246,0.97978466,59356.0,59355.0,0.1397064]
[1723899609342,1.07418466,59356.0,59355.0,0.1397064]
[1723899614290,1.07418466,59356.0,59355.0,0.0777064]
[1723899614517,1.07518466,59356.0,59355.0,0.0777064]
[1723899614707,1.07418466,59356.0,59355.0,0.0777064]
[1723899615157,1.07718466,59356.0,59355.0,0.0777064]
[1723899615806,1.07418466,59356.0,59355.0,0.0777064]
[1723899617528,1.07497006,59356.0,59355.0,0.0777064]
[1723899619914,1.2465246,59356.0,59355.0,0.0009064]
[1723899620110,1.41907914,59356.0,59355.0,0.0009064]
[1723899620321,1.6423366,59356.0,59355.0,0.0009064]
[1723899621962,1.5479366,59356.0,59355.0,0.0009064]
[1723899624098,1.5439366,59356.0,59355.0,0.0009064]
[1723899624440,1.5459366,59356.0,59355.0,0.0009064]
[1723899624596,1.5439366,59356.0,59355.0,0.0009064]
[1723899624961,1.5459366,59356.0,59355.0,0.0009064]
[1723899625949,1.5479366,59356.0,59355.0,0.0009064]
[1723899627276,1.62029094,59356.0,59355.0,0.0009064]
[1723899628558,1.6202067,59356.0,59355.0,0.0009064]
[1723899629177,1.77199309,59356.0,59355.0,0.0009064]
[1723899629376,1.86639309,59356.0,59355.0,0.0009064]
[1723899630334,1.79403875,59356.0,59355.0,0.0009064]
[1723899631669,1.86157275,59356.0,59355.0,0.0009064]
[1723899634776,1.86154402,59356.0,59355.0,0.0009064]
[1723899636965,1.96154402,59356.0,59355.0,0.0009064]
[1723899637848,1.95954402,59356.0,59355.0,0.0009064]
[1723899638084,1.9813409,59356.0,59355.0,0.0009064]
[1723899638253,2.13309856,59356.0,59355.0,0.0009064]
[1723899638887,2.13109856,59356.0,59355.0,0.0009064]
[1723899639091,1.96154402,59356.0,59355.0,0.0009064]
[1723899639239,1.80978636,59356.0,59355.0,0.0009064]
[1723899647189,1.57228636,59356.0,59355.0,0.0009064]
[1723899647332,0.93008208,59356.0,59355.0,0.1453064]
[1723899647536,0.72777382,59356.0,59355.0,0.1453064]
[1723899648495,0.41255106,59356.0,59355.0,0.1453064]
[1723899648655,0.12983906,59356.0,59355.0,0.1453064]
[1723899649007,0.13183906,59356.0,59355.0,0.1453064]
[1723899649206,0.38455106,59356.0,59355.0,0.1453064]
[1723899649775,0.38255106,59356.0,59355.0,0.1453064]
[1723899649981,0.38055106,59356.0,59355.0,0.1453064]
[1723899650190,0.38055106,59356.0,59355.0,0.2716644]
[1723899650191,0.0026094,59356.0,59355.0,0.2716644]
[1723899650389,0.0016094,59356.0,59355.0,0.79845578]
[1723899650788,0.0016094,59356.0,59355.0,0.81070349]
[1723899651012,0.0016094,59356.0,59355.0,0.81070108]
[1723899651214,0.0016094,59356.0,59355.0,0.83005805]
[1723899651533,0.0016094,59356.0,59355.0,0.83105805]
[1723899651739,0.0016094,59356.0,59355.0,0.82081034]
[1723899652139,0.0016094,59356.0,59355.0,0.82281034]
[1723899652684,0.0016094,59356.0,59355.0,0.82181034]
[1723899653100,0.0016094,59356.0,59355.0,1.02736488]
[1723899653306,0.0016094,59356.0,59355.0,1.28008088]
[1723899653508,0.0016094,59356.0,59355.0,1.27808088]
[1723899653921,0.0016094,59356.0,59355.0,1.29108088]
[1723899654305,0.0016094,59356.0,59355.0,1.26972391]
[1723899655453,0.0016094,59356.0,59355.0,1.24836694]
[1723899661588,0.0016094,59356.0,59355.0,1.34276694]
[1723899661976,0.0016094,59356.0,59355.0,1.24836694]
[1723899662800,0.0016094,59356.0,59355.0,0.99565094]
[1723899664218,0.0016094,59356.0,59355.0,0.8240964]
[1723899664418,0.0016094,59356.0,59355.0,0.5713804]
[1723899665741,0.00143863,59356.0,59355.0,0.5713804]
[1723899671220,0.00143863,59356.0,59355.0,0.2956644]
[1723899671596,0.00143863,59356.0,59355.0,0.1693064]